bitfinex/quotes_SOLUSD_20230904
["timestamp","ask_amount","ask_price","bid_price","bid_amount"]
[1693831803575,136.239,19.451,19.441,3.27034314]
[1693831804690,136.239,19.451,19.441,58.27034314]
[1693831805678,33.931,19.451,19.441,58.27034314]
[1693831807459,8.02,19.451,19.441,58.27034314]
[1693831808068,33.931,19.451,19.441,58.27034314]
[1693831808468,8.02,19.451,19.441,58.27034314]
[1693831808666,8.019,19.454,19.441,58.27034314]
[1693831809161,33.926,19.454,19.441,58.27034314]
[1693831819282,136.218,19.454,19.441,100.14592153]
[1693831820287,136.218,19.454,19.441,3.27034314]
[1693831820505,1.25535406,19.453,19.441,3.27034314]
[1693831820693,192.806,19.45,19.441,3.27034314]
[1693831821984,90.49,19.45,19.441,3.27034314]
[1693831822584,33.933,19.45,19.441,3.27034314]
[1693831822785,33.933,19.45,19.441,58.27034314]
[1693831825695,136.246,19.45,19.441,58.27034314]
[1693831840302,20.0,19.449,19.434,3.27034314]
[1693831840505,192.854,19.445,19.432,3.27034314]
[1693831840801,1.67426722,19.444,19.431,3.27034314]
[1693831841100,90.532,19.441,19.431,3.27034314]
[1693831842588,90.532,19.441,19.431,58.27034314]
[1693831844201,90.532,19.441,19.431,3.27034314]
[1693831844202,33.949,19.441,19.431,3.27034314]
[1693831844602,8.024,19.441,19.431,3.27034314]
[1693831844899,33.948,19.441,19.431,3.27034314]
[1693831845702,33.948,19.441,19.431,58.27034314]
[1693831852412,33.948,19.441,19.431,3.27034314]
[1693831853813,33.948,19.441,19.431,58.27034314]
[1693831864515,33.948,19.441,19.431,3.27034314]
[1693831864723,34.03,19.44,19.426,3.27034314]
[1693831864910,192.941,19.436,19.424,3.27034314]
[1693831865215,192.941,19.436,19.42,34.03]
[1693831865216,8.028,19.431,19.421,3.27034314]
[1693831868821,8.028,19.431,19.421,58.27034314]
[1693831869017,8.028,19.431,19.421,3.27034314]
[1693831869219,8.028,19.431,19.417,3.27034314]
[1693831870123,33.965,19.431,19.417,3.27034314]
[1693831870329,91.9494,19.434,19.42,34.03]
[1693831870627,0.69326157,19.433,19.421,28.82488467]
[1693831870827,8.027,19.433,19.422,55.0]
[1693831871015,8.027,19.433,19.423,3.27034314]
[1693831871724,0.85079096,19.432,19.423,3.27034314]
[1693831872026,8.029,19.43,19.423,3.27034314]
[1693831872727,8.028,19.431,19.421,3.27034314]
[1693831872911,8.029,19.43,19.421,3.27034314]
[1693831873916,8.029,19.43,19.421,58.27034314]
[1693831874607,8.028,19.432,19.421,58.27034314]
[1693831879232,8.028,19.432,19.421,3.27034314]
[1693831879526,64.635,19.432,19.421,3.27034314]
[1693831879725,64.635,19.432,19.415,3.27034314]
[1693831880236,90.571,19.432,19.415,3.27034314]
[1693831880423,185.3723,19.432,19.415,3.27034314]
[1693831881931,185.3723,19.432,19.415,58.27034314]
[1693831882116,185.3723,19.432,19.416,20.0]
[1693831882324,287.7803,19.432,19.417,58.27034314]
[1693831883637,287.7803,19.432,19.417,3.27034314]
[1693831883938,287.7803,19.432,19.417,58.27034314]
[1693831888518,34.03,19.43,19.417,3.27034314]
[1693831888717,34.03,19.43,19.413,3.27034314]
[1693831888718,193.037,19.427,19.413,3.27034314]
[1693831888931,20.0,19.426,19.412,3.27034314]
[1693831889125,33.982,19.422,19.411,3.27034314]
[1693831889430,8.031,19.423,19.411,3.27034314]
[1693831889835,8.031,19.424,19.411,3.27034314]
[1693831890562,92.6347,19.426,19.411,58.27034314]
[1693831890725,8.031,19.424,19.411,58.27034314]
[1693831892530,25.946,19.425,19.411,58.27034314]
[1693831893625,8.031,19.424,19.411,58.27034314]
[1693831894839,8.029,19.428,19.412,20.0]
[1693831895020,8.029,19.428,19.413,58.27034314]
[1693831895219,33.97,19.428,19.414,20.0]
[1693831895525,33.97,19.428,19.415,58.27034314]
[1693831895843,33.97,19.428,19.417,3.27034314]
[1693831896026,33.97,19.428,19.417,58.27034314]
[1693831896232,33.97,19.428,19.417,3.27034314]
[1693831896736,33.97,19.428,19.413,3.27034314]
[1693831897136,8.029,19.428,19.413,3.27034314]
[1693831897825,8.029,19.428,19.413,58.27034314]
[1693831898333,8.029,19.428,19.414,20.0]
[1693831898535,8.029,19.428,19.415,58.27034314]
[1693831898732,8.029,19.428,19.416,20.0]
[1693831898923,8.029,19.428,19.417,58.27034314]
[1693831902122,33.97,19.428,19.417,58.27034314]
[1693831905725,8.029,19.428,19.417,58.27034314]
[1693831907323,8.029,19.429,19.417,58.27034314]
[1693831911138,8.029,19.43,19.417,58.27034314]
[1693831912524,33.968,19.43,19.417,58.27034314]
[1693831913149,33.968,19.43,19.42,34.09]
[1693831913347,33.968,19.43,19.421,58.27034314]
[1693831915741,8.029,19.43,19.421,58.27034314]
[1693831916134,33.968,19.43,19.421,58.27034314]
[1693831916944,8.029,19.43,19.421,58.27034314]
[1693831917336,33.968,19.43,19.421,58.27034314]
[1693831918045,33.968,19.43,19.421,55.0]
[1693831923655,136.386,19.43,19.416,20.0]
[1693831923948,170.476,19.43,19.417,2.62663599]
[1693831924653,192.86319464,19.43,19.414,3.27034314]
[1693831924857,192.86319464,19.43,19.414,23.27034314]
[1693831925031,192.86319464,19.43,19.414,3.27034314]
[1693831925235,192.86319464,19.43,19.412,3.27034314]
[1693831926250,170.476,19.43,19.412,3.27034314]
[1693831926746,170.476,19.43,19.412,45.04583232]
[1693831926937,170.476,19.43,19.413,75.0]
[1693831927248,170.476,19.43,19.414,3.27034314]
[1693831927846,20.0,19.429,19.411,3.27034314]
[1693831928060,193.062,19.424,19.411,3.27034314]
[1693831928253,33.986,19.42,19.411,3.27034314]
[1693831930031,33.986,19.42,19.409,3.27034314]
[1693831930254,33.986,19.42,19.41,34.09]
[1693831930550,33.986,19.42,19.411,3.27034314]
[1693831930860,8.033,19.42,19.411,58.27034314]
[1693831931251,8.032,19.421,19.411,58.27034314]
[1693831931451,33.983,19.421,19.411,58.27034314]
[1693831931648,8.032,19.421,19.411,58.27034314]
[1693831932344,33.983,19.421,19.411,58.27034314]
[1693831934061,33.983,19.421,19.411,3.27034314]
[1693831934243,33.983,19.421,19.406,3.27034314]
[1693831934438,33.983,19.421,19.406,23.27034314]
[1693831936756,33.983,19.421,19.407,55.0]
[1693831936947,33.983,19.421,19.408,3.27034314]
[1693831937254,8.032,19.421,19.41,34.09]
[1693831937443,94.9471,19.423,19.411,58.27034314]
[1693831938158,8.031,19.424,19.411,58.27034314]
[1693831938335,8.031,19.425,19.411,58.27034314]
[1693831939044,25.944,19.426,19.411,58.27034314]
[1693831940246,8.03,19.425,19.411,58.27034314]
[1693831941342,34.09,19.43,19.411,58.27034314]
[1693831941544,20.0,19.429,19.411,58.27034314]
[1693831942759,8.03,19.425,19.411,58.27034314]
[1693831943256,1.67426722,19.434,19.421,3.27034314]
[1693831943558,8.026,19.436,19.421,58.27034314]
[1693831943758,1.67426722,19.435,19.421,58.27034314]
[1693831944055,35.63226722,19.435,19.421,58.27034314]
[1693831944456,35.63226722,19.435,19.421,53.27034314]
[1693831945061,9.70026722,19.435,19.421,53.27034314]
[1693831945359,35.63226722,19.435,19.421,53.27034314]
[1693831957255,4.94461036,19.446,19.422,20.0]
[1693831957570,4.94461036,19.443,19.423,66.90986]
[1693831957766,4.94461036,19.443,19.424,115.90730983]
[1693831957971,33.948,19.441,19.425,55.0]
[1693831958155,4.94461036,19.44,19.426,20.0]
[1693831958349,12.96861036,19.44,19.427,55.0]
[1693831959564,38.89361036,19.44,19.427,55.0]
[1693831960377,12.96861036,19.44,19.427,55.0]
[1693831960669,8.024,19.44,19.427,55.0]
[1693831960876,4.94461036,19.439,19.427,55.0]
[1693831963669,56.582,19.441,19.427,55.0]
[1693831963970,4.94461036,19.44,19.427,55.0]
[1693831964173,12.96861036,19.44,19.427,55.0]
[1693831965771,38.89361036,19.44,19.427,55.0]
[1693831966473,12.96861036,19.44,19.427,55.0]
[1693831966969,38.89361036,19.44,19.427,55.0]
[1693831967354,38.89361036,19.44,19.424,40.36213991]
[1693831967568,38.89361036,19.44,19.425,20.0]
[1693831968181,38.89361036,19.44,19.421,20.0]
[1693831968766,141.25961036,19.44,19.421,20.0]
[1693831969163,99.322,19.439,19.421,20.0]
[1693831969369,8.027,19.434,19.421,20.0]
[1693831969765,4.94461036,19.433,19.422,55.0]
[1693831969959,25.932,19.435,19.423,20.0]
[1693831970166,8.027,19.433,19.424,55.0]
[1693831970371,33.962,19.433,19.425,20.0]
[1693831970570,33.962,19.433,19.423,20.0]
[1693831970781,8.027,19.433,19.423,20.0]
[1693831970977,25.933,19.435,19.421,20.0]
[1693831971276,3.17665596,19.434,19.421,20.0]
[1693831971472,11.20365596,19.434,19.421,20.0]
[1693831971672,3.17665596,19.434,19.422,55.0]
[1693831971873,3.38534833,19.436,19.423,20.0]
[1693831972078,29.91845828,19.438,19.424,55.0]
[1693831972276,29.91845828,19.438,19.425,20.0]
[1693831972467,3.99045828,19.438,19.426,55.0]
[1693831972670,12.01545828,19.438,19.426,55.0]
[1693831973373,37.94345828,19.438,19.426,55.0]
[1693831974683,3.99045828,19.438,19.426,55.0]
[1693831975480,12.01545828,19.438,19.426,55.0]
[1693831975669,3.99045828,19.438,19.426,55.0]
[1693831976783,12.64746151,19.439,19.426,55.0]
[1693831977483,12.64746151,19.439,19.43,34.06]
[1693831977682,12.64746151,19.439,19.431,55.0]
[1693831977884,4.62246151,19.439,19.431,55.0]
[1693831978875,12.64746151,19.439,19.431,55.0]
[1693831979079,4.62246151,19.439,19.431,55.0]
[1693831979388,12.64646151,19.44,19.431,55.0]
[1693831981281,38.57146151,19.44,19.431,55.0]
[1693831981482,4.62246151,19.44,19.431,55.0]
[1693831982594,12.82840092,19.441,19.431,55.0]
[1693831983293,4.80440092,19.441,19.431,55.0]
[1693831983682,12.82840092,19.441,19.431,55.0]
[1693831988178,38.75240092,19.441,19.431,55.0]
[1693831992696,34.06,19.44,19.425,60.19341563]
[1693831992994,90.553,19.436,19.425,60.19341563]
[1693831993289,33.957,19.436,19.425,60.19341563]
[1693831993597,33.957,19.436,19.425,75.66255142]
[1693831993780,2.60949921,19.435,19.425,75.66255142]
[1693831993980,8.027,19.434,19.426,55.0]
[1693831994380,8.026,19.435,19.426,55.0]
[1693831995083,8.026,19.435,19.425,55.66255142]
[1693831995282,3.0255085,19.434,19.42,49.14646422]
[1693831995695,8.028,19.43,19.42,49.14646422]
[1693831995882,8.028,19.431,19.42,49.14646422]
[1693831996083,34.06,19.44,19.42,49.14646422]
[1693831996389,24.17656402,19.439,19.42,49.14646422]
[1693831997589,33.961,19.434,19.42,49.14646422]
[1693831997785,4.17656402,19.433,19.421,55.0]
[1693831997989,8.028,19.432,19.421,55.0]
[1693831999193,8.028,19.431,19.421,55.0]
[1693831999591,90.575,19.431,19.421,55.0]
[1693832000097,2.79347548,19.43,19.421,55.0]
[1693832000283,2.79347548,19.43,19.416,69.59123393]
[1693832000606,2.79347548,19.43,19.417,25.55454153]
[1693832001099,10.82247548,19.43,19.417,25.55454153]
[1693832001294,36.76147548,19.43,19.417,25.55454153]
[1693832002402,10.82247548,19.43,19.417,25.55454153]
[1693832002584,8.029,19.43,19.418,55.0]
[1693832002786,2.68477478,19.429,19.418,55.0]
[1693832003193,3.92411724,19.432,19.42,34.06]
[1693832003394,11.95211724,19.432,19.421,55.0]
[1693832003799,37.88811724,19.432,19.421,55.0]
[1693832005503,3.92411724,19.432,19.421,55.0]
[1693832005707,24.94461036,19.437,19.421,55.0]
[1693832006008,4.94461036,19.434,19.421,55.0]
[1693832006193,12.97161036,19.434,19.421,55.0]
[1693832006598,38.90461036,19.434,19.421,55.0]
[1693832007814,38.90461036,19.434,19.42,34.06]
[1693832009890,38.90461036,19.434,19.421,55.0]
[1693832010092,12.97161036,19.434,19.421,55.0]
[1693832010499,38.90461036,19.434,19.421,55.0]
[1693832014910,12.97161036,19.434,19.421,55.0]
[1693832016014,38.90461036,19.434,19.421,55.0]
[1693832022116,12.97161036,19.434,19.421,55.0]
[1693832022417,38.90461036,19.434,19.421,55.0]
[1693832026319,38.90461036,19.434,19.42,91.0244696]
[1693832028019,38.90461036,19.434,19.421,55.0]
[1693832038318,38.90461036,19.434,19.42,15.67507723]
[1693832038527,38.90461036,19.434,19.416,110.87584534]
[1693832038727,61.291805,19.434,19.416,110.87584534]
[1693832040727,61.291805,19.434,19.417,55.0]
[1693832042536,38.90461036,19.434,19.417,55.0]
[1693832046041,34.06,19.43,19.417,55.0]
[1693832046334,33.974,19.427,19.417,55.0]
[1693832046722,8.03,19.427,19.417,55.0]
[1693832047435,33.973,19.427,19.417,55.0]
[1693832054226,8.03,19.427,19.417,55.0]
[1693832054635,33.973,19.427,19.417,55.0]
[1693832057343,2.6254907,19.426,19.416,69.59123393]
[1693832057556,2.6254907,19.426,19.413,128.14001607]
[1693832057733,2.6254907,19.426,19.414,20.0]
[1693832057935,8.03,19.426,19.414,20.0]
[1693832058637,8.03,19.426,19.415,55.0]
[1693832058839,8.03,19.426,19.416,20.0]
[1693832059037,8.03,19.426,19.417,55.0]
[1693832061144,2.54237544,19.426,19.417,55.0]
[1693832061648,10.57237544,19.426,19.417,55.0]
[1693832061951,8.03,19.426,19.417,55.0]
[1693832062253,33.974,19.426,19.417,55.0]
[1693832062438,33.974,19.426,19.412,84.95117213]
[1693832062644,4.94461036,19.425,19.412,15.3599382]
[1693832062841,90.622,19.422,19.412,15.3599382]
[1693832063048,4.94461036,19.421,19.412,15.3599382]
[1693832063354,12.97661036,19.421,19.412,15.3599382]
[1693832063536,8.032,19.421,19.412,15.3599382]
[1693832063734,8.032,19.421,19.41,34.06]
[1693832064254,33.983,19.421,19.41,34.06]
[1693832064636,33.983,19.421,19.411,55.0]
[1693832067061,136.449,19.421,19.411,55.0]
[1693832067242,33.983,19.421,19.406,68.921752]
[1693832067443,33.983,19.421,19.407,0.17171874]
[1693832068940,33.983,19.421,19.407,55.17171874]
[1693832069152,8.032,19.421,19.407,55.17171874]
[1693832069471,10.51009136,19.421,19.407,55.17171874]
[1693832069648,8.032,19.421,19.407,55.17171874]
[1693832070246,33.983,19.421,19.407,55.17171874]
[1693832070544,3.19778407,19.421,19.41,34.06]
[1693832070740,3.19778407,19.421,19.411,55.0]
[1693832070940,55.90773076,19.437,19.412,128.61558941]
[1693832071256,33.959,19.435,19.421,3.1977]
[1693832071460,1.74691036,19.434,19.421,58.1977]
[1693832071648,9.77391036,19.434,19.421,55.0]
[1693832072656,35.70691036,19.434,19.421,55.0]
[1693832092371,9.77391036,19.434,19.421,55.0]
[1693832092558,1.74691036,19.434,19.421,55.0]
[1693832093463,21.74691036,19.436,19.422,1.83671665]
[1693832093771,21.74691036,19.436,19.422,55.0]
[1693832093953,21.74691036,19.436,19.423,28.6206038]
[1693832094272,1.74691036,19.436,19.424,55.0]
[1693832094460,20.0,19.438,19.424,55.0]
[1693832094461,1.74691036,19.437,19.424,55.0]
[1693832095069,1.74691036,19.438,19.424,55.0]
[1693832095459,1.74691036,19.438,19.43,34.06]
[1693832095658,1.74691036,19.438,19.431,55.0]
[1693832096351,9.77091036,19.441,19.431,55.0]
[1693832097467,1.74691036,19.441,19.431,55.0]
[1693832098169,1.74691036,19.442,19.431,55.0]
[1693832098571,9.76991036,19.442,19.431,55.0]
[1693832099777,1.74691036,19.442,19.431,55.0]
[1693832099976,9.76991036,19.442,19.431,55.0]
[1693832100175,1.74691036,19.442,19.431,55.0]
[1693832100365,8.023,19.443,19.431,55.0]
[1693832100565,1.74691036,19.442,19.431,55.0]
[1693832101376,9.76991036,19.442,19.431,55.0]
[1693832102961,1.74691036,19.442,19.431,55.0]
[1693832103371,9.77091036,19.442,19.431,55.0]
[1693832103868,1.74691036,19.445,19.431,55.0]
[1693832105075,8.023,19.444,19.431,55.0]
[1693832105277,1.74691036,19.443,19.431,55.0]
[1693832105773,9.76991036,19.443,19.431,55.0]
[1693832105979,1.74691036,19.443,19.431,55.0]
[1693832106179,1.74691036,19.443,19.431,95.8765432]
[1693832109891,1.74691036,19.444,19.431,95.8765432]
[1693832110090,9.76991036,19.444,19.431,95.8765432]
[1693832112773,1.74691036,19.444,19.431,95.8765432]
[1693832112973,8.023,19.444,19.431,95.8765432]
[1693832113273,1.74691036,19.443,19.431,95.8765432]
[1693832113467,1.74691036,19.444,19.431,95.8765432]
[1693832117492,1.74691036,19.446,19.431,95.8765432]
[1693832117681,9.76891036,19.446,19.431,95.8765432]
[1693832118588,35.68591036,19.446,19.431,95.8765432]
[1693832119389,1.74691036,19.446,19.431,157.00217707]
[1693832119697,29.76891036,19.446,19.431,157.00217707]
[1693832119894,29.76891036,19.446,19.431,254.35007707]
[1693832121592,1.74691036,19.446,19.44,34.06]
[1693832121800,9.76591036,19.452,19.441,55.0]
[1693832122591,35.67491036,19.452,19.441,55.0]
[1693832125079,50.83840649,19.452,19.441,55.0]
[1693832130579,35.67491036,19.452,19.441,55.0]
[1693832130786,1.74691036,19.452,19.441,55.0]
[1693832131486,33.928,19.452,19.441,55.0]
[1693832131686,1.74691036,19.451,19.441,55.0]
[1693832132086,1.74691036,19.452,19.441,55.0]
[1693832132285,1.74691036,19.453,19.441,55.0]
[1693832132499,9.76591036,19.453,19.441,55.0]
[1693832133299,1.74691036,19.453,19.441,55.0]
[1693832134502,9.76591036,19.453,19.441,55.0]
[1693832134704,1.74691036,19.453,19.441,55.0]
[1693832135607,9.76591036,19.454,19.441,55.0]
[1693832136119,1.74691036,19.454,19.441,55.0]
[1693832136710,9.76591036,19.454,19.441,55.0]
[1693832137295,1.74691036,19.454,19.441,55.0]
[1693832137902,9.76491036,19.454,19.441,55.0]
[1693832138399,1.74691036,19.454,19.441,55.0]
[1693832139199,9.76591036,19.454,19.441,55.0]
[1693832139413,35.67291036,19.454,19.441,55.0]
[1693832141195,9.76591036,19.454,19.441,55.0]
[1693832142103,35.67291036,19.454,19.441,55.0]
[1693832143111,8.019,19.453,19.441,55.0]
[1693832143303,1.74691036,19.452,19.441,55.0]
[1693832144100,9.76591036,19.452,19.441,55.0]
[1693832145733,1.74691036,19.452,19.441,55.0]
[1693832147796,9.76591036,19.452,19.441,55.0]
[1693832149106,9.76591036,19.452,19.441,70.24832904]
[1693832150293,35.67491036,19.452,19.441,70.24832904]
[1693832150606,90.477,19.452,19.441,55.0]
[1693832150806,0.91421649,19.451,19.441,55.0]
[1693832151009,8.93421649,19.451,19.441,55.0]
[1693832151400,34.84521649,19.451,19.441,55.0]
[1693832152110,8.93421649,19.451,19.441,55.0]
[1693832152305,34.84521649,19.451,19.441,55.0]
[1693832153004,8.93421649,19.451,19.441,55.0]
[1693832153395,34.84521649,19.451,19.441,55.0]
[1693832159904,8.93421649,19.451,19.441,55.0]
[1693832164429,34.84521649,19.451,19.441,55.0]
[1693832164721,8.021,19.448,19.441,55.0]
[1693832165224,8.021,19.449,19.441,55.0]
[1693832165405,0.93322077,19.448,19.441,55.0]
[1693832167414,8.95422077,19.448,19.441,55.0]
[1693832167726,0.63494226,19.447,19.441,55.0]
[1693832168120,1.2469772,19.448,19.441,55.0]
[1693832168307,1.66894367,19.449,19.441,55.0]
[1693832170417,9.68994367,19.449,19.441,55.0]
[1693832170728,1.66894367,19.449,19.441,55.0]
[1693832172519,9.68994367,19.449,19.441,55.0]
[1693832172721,1.66894367,19.449,19.441,55.0]
[1693832175327,1.74691036,19.45,19.441,55.0]
[1693832176427,9.76691036,19.45,19.441,55.0]
[1693832176628,43.82691036,19.45,19.441,55.0]
[1693832178023,1.74691036,19.45,19.441,55.0]
[1693832178411,9.76691036,19.45,19.441,55.0]
[1693832179317,43.82691036,19.45,19.441,55.0]
[1693832180218,69.73891036,19.45,19.441,55.0]
[1693832183338,43.82691036,19.45,19.441,55.0]
[1693832184627,69.73891036,19.45,19.441,55.0]
[1693832184942,43.82691036,19.45,19.441,55.0]
[1693832185321,35.80691036,19.45,19.441,55.0]
[1693832187629,9.76691036,19.45,19.441,55.0]
[1693832189530,69.73891036,19.45,19.441,55.0]
[1693832191536,192.911,19.439,19.421,2.42993863]
[1693832191726,1.74691036,19.438,19.421,2.42993863]
[1693832191922,33.962,19.433,19.42,34.06]
[1693832192130,1.74691036,19.432,19.42,34.06]
[1693832192934,9.77491036,19.432,19.42,34.06]
[1693832193135,35.71091036,19.432,19.42,34.06]
[1693832193335,35.71091036,19.432,19.421,58.1977]
[1693832193644,35.71091036,19.432,19.421,55.0]
[1693832193842,35.71091036,19.432,19.42,34.06]
[1693832194047,35.71091036,19.432,19.421,1.33368761]
[1693832194238,1.74691036,19.432,19.42,34.06]
[1693832194438,1.74691036,19.432,19.421,1.33368761]
[1693832195048,9.77491036,19.432,19.421,1.33368761]
[1693832195752,9.77491036,19.432,19.421,56.33368761]
[1693832195951,9.77491036,19.432,19.421,55.0]
[1693832201640,9.77491036,19.432,19.422,2.06964404]
[1693832201949,9.77491036,19.432,19.421,55.0]
[1693832203653,35.71091036,19.432,19.421,55.0]
[1693832205555,1.74691036,19.432,19.421,55.0]
[1693832206057,9.77491036,19.432,19.422,1.87548466]
[1693832206760,9.77491036,19.432,19.421,55.0]
[1693832206936,1.74691036,19.432,19.421,55.0]
[1693832207852,9.77491036,19.432,19.421,55.0]
[1693832208356,9.77491036,19.432,19.422,1.58717712]
[1693832210061,35.71091036,19.432,19.421,55.0]
[1693832210455,1.74691036,19.432,19.422,1.78664996]
[1693832211459,9.77491036,19.432,19.422,1.78664996]
[1693832212060,8.028,19.432,19.422,1.78664996]
[1693832214459,0.4986639,19.431,19.422,1.78664996]
[1693832215362,8.5266639,19.431,19.421,55.0]
[1693832215560,0.4986639,19.431,19.421,55.0]
[1693832216151,8.5266639,19.431,19.421,55.0]
[1693832217760,34.4636639,19.431,19.421,55.0]
[1693832222961,8.5266639,19.431,19.421,55.0]
[1693832223263,0.4986639,19.431,19.422,1.90097812]
[1693832224061,0.4986639,19.431,19.421,55.0]
[1693832224262,0.4986639,19.431,19.422,1.61438627]
[1693832224554,8.5266639,19.431,19.421,55.0]
[1693832224857,8.028,19.432,19.422,2.21103063]
[1693832225065,0.65942857,19.431,19.422,2.21103063]
[1693832226549,8.028,19.432,19.422,2.21103063]
[1693832226753,0.52212678,19.431,19.422,2.21103063]
[1693832226966,8.027,19.433,19.422,2.21103063]
[1693832227462,0.69574158,19.432,19.422,2.21103063]
[1693832228066,8.72374158,19.432,19.422,2.21103063]
[1693832228252,0.69574158,19.432,19.422,2.21103063]
[1693832229154,8.72374158,19.432,19.422,2.21103063]
[1693832229365,8.028,19.432,19.422,2.21103063]
[1693832229967,33.964,19.432,19.422,2.21103063]
[1693832230169,1.18666729,19.431,19.422,2.21103063]
[1693832230365,8.029,19.43,19.422,2.21103063]
[1693832231066,8.029,19.43,19.421,55.0]
[1693832232659,8.029,19.43,19.422,1.83798824]
[1693832233869,8.028,19.43,19.422,1.83798824]
[1693832234074,8.028,19.431,19.422,1.83798824]
[1693832234375,0.60754465,19.43,19.422,1.83798824]
[1693832235365,8.63554465,19.43,19.422,1.83798824]
[1693832235569,8.028,19.43,19.421,55.0]
[1693832235786,8.028,19.431,19.421,55.0]
[1693832235970,0.82157082,19.43,19.421,55.0]
[1693832238065,1.07104238,19.431,19.422,2.04925699]
[1693832238676,8.028,19.431,19.422,2.04925699]
[1693832239469,8.028,19.432,19.422,2.04925699]
[1693832240578,33.964,19.432,19.422,2.04925699]
[1693832242388,0.63582282,19.431,19.422,2.04925699]
[1693832242589,8.028,19.431,19.422,2.04925699]
[1693832242973,33.964,19.432,19.422,2.04925699]
[1693832243980,8.028,19.432,19.422,2.04925699]
[1693832244672,1.71642251,19.431,19.421,55.0]
[1693832245278,1.71642251,19.431,19.422,1.753487]
[1693832245469,1.71642251,19.431,19.421,55.0]
[1693832247783,9.74442251,19.431,19.421,55.0]
[1693832250383,8.028,19.432,19.422,3.0131785]
[1693832250573,8.028,19.432,19.421,55.0]
[1693832250796,1.74691036,19.431,19.421,55.0]
[1693832252173,8.028,19.432,19.422,2.34809515]
[1693832252374,1.74691036,19.431,19.421,55.0]
[1693832252579,1.74691036,19.431,19.422,1.58596452]
[1693832252877,1.74691036,19.432,19.422,1.58596452]
[1693832253070,1.74691036,19.432,19.421,55.0]
[1693832253468,9.77491036,19.432,19.421,55.0]
[1693832254383,1.74691036,19.432,19.421,55.0]
[1693832254885,9.77491036,19.432,19.421,55.0]
[1693832256085,35.71091036,19.432,19.421,55.0]
[1693832257276,9.77491036,19.432,19.421,55.0]
[1693832257580,35.71091036,19.432,19.421,55.0]
[1693832259982,35.71091036,19.432,19.422,1.73956344]
[1693832264185,9.77491036,19.432,19.422,1.73956344]
[1693832267292,1.74691036,19.432,19.422,1.73956344]
[1693832267498,292.8492566,19.449,19.422,27.29410497]
[1693832267499,25.921,19.443,19.422,27.29410497]
[1693832267797,25.921,19.443,19.421,100.5366683]
[1693832267798,8.023,19.443,19.431,1.74690047]
[1693832267984,33.944,19.443,19.431,55.0]
[1693832270892,33.944,19.443,19.432,1.74690047]
[1693832271090,33.944,19.443,19.43,34.06]
[1693832271488,33.944,19.443,19.426,55.0]
[1693832271795,33.944,19.443,19.427,21.74690047]
[1693832272397,33.944,19.443,19.428,55.0]
[1693832276599,33.944,19.443,19.429,1.74690047]
[1693832292905,8.025,19.439,19.429,1.74690047]
[1693832294410,25.925,19.441,19.429,1.74690047]
[1693832294712,8.024,19.44,19.429,1.74690047]
[1693832297802,33.949,19.44,19.429,1.74690047]
[1693832298914,8.024,19.44,19.429,1.74690047]
[1693832303008,102.336,19.446,19.432,1.74690047]
[1693832303216,93.4668,19.445,19.432,1.74690047]
[1693832303620,8.024,19.441,19.432,1.74690047]
[1693832303814,8.024,19.441,19.431,55.0]
[1693832306923,33.948,19.441,19.431,55.0]
[1693832311226,8.024,19.441,19.431,55.0]
[1693832315824,8.024,19.441,19.431,95.59670781]
[1693832316527,8.023,19.443,19.431,95.59670781]
[1693832316829,8.023,19.443,19.432,1.74690047]